[Event "Late-Titled-Tuesday-Blitz-December-26-2023"]
[Site "Chess.com"]
[Date "2023.12.26"]
[Round "11"]
[White "SocoLoco"]
[Black "Nick12772"]
[Result "1/2-1/2"]
[WhiteElo "2132"]
[BlackElo "2281"]
[TimeControl "180+1"]
[EndTime "16:02:45 PST"]
[Termination "Game drawn by repetition"]

1. e4 {[%clk 0:02:59.9]} 1... e6 {[%clk 0:03:00.1]} 2. d3 {[%clk 0:02:58.6]}
2... d5 {[%clk 0:03:01]} 3. f4 {[%clk 0:02:56.3]} 3... dxe4 {[%clk 0:03:00.8]}
4. Nc3 {[%clk 0:02:56.6]} 4... Nf6 {[%clk 0:02:54.9]} 5. Bd2 {[%clk 0:02:55.8]}
5... e3 {[%clk 0:02:42.5]} 6. Bxe3 {[%clk 0:02:55.1]} 6... Bb4 {[%clk
0:02:43.2]} 7. Nf3 {[%clk 0:02:50.4]} 7... O-O {[%clk 0:02:39.8]} 8. Be2 {[%clk
0:02:49.5]} 8... Nc6 {[%clk 0:02:36.1]} 9. O-O {[%clk 0:02:49]} 9... b6 {[%clk
0:02:35.6]} 10. a3 {[%clk 0:02:46.8]} 10... Be7 {[%clk 0:02:32.1]} 11. Ne4
{[%clk 0:02:44.8]} 11... Nxe4 {[%clk 0:02:30.4]} 12. dxe4 {[%clk 0:02:44.7]}
12... Qxd1 {[%clk 0:02:31.3]} 13. Rfxd1 {[%clk 0:02:44.1]} 13... Rd8 {[%clk
0:02:26.1]} 14. Kf2 {[%clk 0:02:38.3]} 14... Bb7 {[%clk 0:02:25.8]} 15. c4
{[%clk 0:02:26]} 15... Bf6 {[%clk 0:02:07.7]} 16. e5 {[%clk 0:02:24.2]} 16...
Be7 {[%clk 0:02:07.9]} 17. b4 {[%clk 0:02:21.6]} 17... Rxd1 {[%clk 0:02:02.6]}
18. Rxd1 {[%clk 0:02:21]} 18... Rd8 {[%clk 0:02:03.5]} 19. Nd4 {[%clk
0:02:10.9]} 19... Nxd4 {[%clk 0:02:02.9]} 20. Rxd4 {[%clk 0:02:11.2]} 20... Rxd4
{[%clk 0:02:02.3]} 21. Bxd4 {[%clk 0:02:11.6]} 21... g6 {[%clk 0:01:51]} 22. g4
{[%clk 0:02:07.7]} 22... Bh4+ {[%clk 0:01:49.5]} 23. Ke3 {[%clk 0:02:06.2]}
23... Kf8 {[%clk 0:01:46.8]} 24. Bd3 {[%clk 0:01:59.4]} 24... Ke8 {[%clk
0:01:45.1]} 25. a4 {[%clk 0:01:48.3]} 25... Be1 {[%clk 0:01:43.9]} 26. b5 {[%clk
0:01:46.6]} 26... Bh4 {[%clk 0:01:34]} 27. Be4 {[%clk 0:01:39.8]} 27... Bxe4
{[%clk 0:01:31.3]} 28. Kxe4 {[%clk 0:01:40.7]} 28... Be1 {[%clk 0:01:27.7]} 29.
h3 {[%clk 0:01:27.4]} 29... Kd7 {[%clk 0:01:26.9]} 30. f5 {[%clk 0:01:20.1]}
30... Bd2 {[%clk 0:01:09]} 31. h4 {[%clk 0:00:56.9]} 31... Be1 {[%clk
0:00:57.9]} 32. h5 {[%clk 0:00:56.5]} 32... exf5+ {[%clk 0:00:56.1]} 33. gxf5
{[%clk 0:00:54.3]} 33... gxh5 {[%clk 0:00:56.1]} 34. Kf4 {[%clk 0:00:50.5]}
34... h4 {[%clk 0:00:54]} 35. Kg4 {[%clk 0:00:30.9]} 35... Bg3 {[%clk
0:00:48.2]} 36. Bc3 {[%clk 0:00:29.9]} 36... Ke8 {[%clk 0:00:45]} 37. Bd4 {[%clk
0:00:27.4]} 37... Kd7 {[%clk 0:00:39.2]} 38. Bc3 {[%clk 0:00:26.9]} 38... Ke8
{[%clk 0:00:36.6]} 39. Bd4 {[%clk 0:00:26.5]} 39... Ke7 {[%clk 0:00:36]} 40. Bc3
{[%clk 0:00:26.2]} 40... Kf8 {[%clk 0:00:33.2]} 41. Bd4 {[%clk 0:00:25.3]} 41...
Ke8 {[%clk 0:00:33.2]} 42. Bc3 {[%clk 0:00:25.2]} 42... Ke7 {[%clk 0:00:33.5]}
43. Bd4 {[%clk 0:00:25.2]} 43... Kd7 {[%clk 0:00:32.4]} 1/2-1/2

[Event "Late-Titled-Tuesday-Blitz-December-26-2023"]
[Site "Chess.com"]
[Date "2023.12.26"]
[Round "11"]
[White "dosto07"]
[Black "IlanSchnaider"]
[Result "0-1"]
[WhiteElo "2531"]
[BlackElo "2672"]
[TimeControl "180+1"]
[EndTime "16:02:53 PST"]
[Termination "IlanSchnaider won by resignation"]

1. e4 {[%clk 0:02:32.1]} 1... c5 {[%clk 0:02:56.3]} 2. Nf3 {[%clk 0:02:31.5]}
2... d6 {[%clk 0:02:56.2]} 3. Bb5+ {[%clk 0:02:31.9]} 3... Bd7 {[%clk
0:02:56.2]} 4. Bxd7+ {[%clk 0:02:32.4]} 4... Qxd7 {[%clk 0:02:57.1]} 5. O-O
{[%clk 0:02:32.6]} 5... Nf6 {[%clk 0:02:57.1]} 6. Qe2 {[%clk 0:02:32.9]} 6...
Nc6 {[%clk 0:02:56.7]} 7. c3 {[%clk 0:02:33.1]} 7... e6 {[%clk 0:02:51.7]} 8. d4
{[%clk 0:02:31]} 8... cxd4 {[%clk 0:02:51.7]} 9. cxd4 {[%clk 0:02:31.5]} 9... d5
{[%clk 0:02:52.5]} 10. e5 {[%clk 0:02:31.6]} 10... Ne4 {[%clk 0:02:52.9]} 11.
Nbd2 {[%clk 0:02:32.1]} 11... Nxd2 {[%clk 0:02:52.6]} 12. Bxd2 {[%clk
0:02:32.7]} 12... Be7 {[%clk 0:02:52.6]} 13. g3 {[%clk 0:02:32.6]} 13... O-O
{[%clk 0:02:52.5]} 14. Kg2 {[%clk 0:02:33.1]} 14... h6 {[%clk 0:02:50.9]} 15. h4
{[%clk 0:02:30.9]} 15... f5 {[%clk 0:02:50.2]} 16. exf6 {[%clk 0:02:31]} 16...
Rxf6 {[%clk 0:02:49.2]} 17. Bf4 {[%clk 0:02:25.9]} 17... Raf8 {[%clk 0:02:47.1]}
18. Ne5 {[%clk 0:02:23.1]} 18... Nxe5 {[%clk 0:02:43.7]} 19. Bxe5 {[%clk
0:02:23.4]} 19... Rf5 {[%clk 0:02:42.1]} 20. Rae1 {[%clk 0:01:53.6]} 20... Bb4
{[%clk 0:02:39.7]} 21. Rd1 {[%clk 0:01:47.4]} 21... Bd6 {[%clk 0:02:39.1]} 22.
Bxd6 {[%clk 0:01:44.2]} 22... Qxd6 {[%clk 0:02:40]} 23. Rde1 {[%clk 0:01:36]}
23... R8f6 {[%clk 0:02:37.3]} 24. Qe3 {[%clk 0:01:22.6]} 24... h5 {[%clk
0:02:36]} 25. Re2 {[%clk 0:01:16.1]} 25... Rg6 {[%clk 0:02:34.8]} 26. Rfe1
{[%clk 0:01:11.4]} 26... Kh7 {[%clk 0:02:35]} 27. Qd3 {[%clk 0:01:10.5]} 27...
a6 {[%clk 0:02:18.9]} 28. Rxe6 {[%clk 0:01:05.8]} 28... Rxe6 {[%clk 0:01:31.4]}
29. Qxf5+ {[%clk 0:01:04.2]} 29... Rg6 {[%clk 0:01:32.1]} 30. Qxh5+ {[%clk
0:01:00.4]} 30... Kg8 {[%clk 0:01:32.5]} 31. Re5 {[%clk 0:00:56.5]} 31... Qc6
{[%clk 0:01:11.6]} 32. Qf3 {[%clk 0:00:48.6]} 32... Rd6 {[%clk 0:01:09.4]} 33.
Re7 {[%clk 0:00:48.1]} 33... Rf6 {[%clk 0:01:07.5]} 34. Qg4 {[%clk 0:00:45.8]}
34... Rf7 {[%clk 0:01:04.4]} 35. Rxf7 {[%clk 0:00:40.2]} 35... Kxf7 {[%clk
0:01:04.4]} 36. Qf5+ {[%clk 0:00:40.7]} 36... Kg8 {[%clk 0:01:04.2]} 37. h5
{[%clk 0:00:40.6]} 37... Qc4 {[%clk 0:01:03]} 38. Qe6+ {[%clk 0:00:32.4]} 38...
Kh8 {[%clk 0:01:00.4]} 39. Qe8+ {[%clk 0:00:31.6]} 39... Kh7 {[%clk 0:01:00.7]}
40. Qg6+ {[%clk 0:00:32]} 40... Kh8 {[%clk 0:01:01]} 41. Qe8+ {[%clk 0:00:23.5]}
41... Kh7 {[%clk 0:01:01.1]} 42. Qg6+ {[%clk 0:00:15.8]} 42... Kh8 {[%clk
0:01:01.5]} 43. Qg4 {[%clk 0:00:10.6]} 43... b5 {[%clk 0:00:56.1]} 44. b3 {[%clk
0:00:10]} 44... Qc2 {[%clk 0:00:55.2]} 45. Qc8+ {[%clk 0:00:07.7]} 45... Qxc8
{[%clk 0:00:54.6]} 0-1

[Event "Late-Titled-Tuesday-Blitz-December-26-2023"]
[Site "Chess.com"]
[Date "2023.12.26"]
[Round "11"]
[White "campochess"]
[Black "powermove"]
[Result "1-0"]
[WhiteElo "2170"]
[BlackElo "2021"]
[TimeControl "180+1"]
[EndTime "16:03:03 PST"]
[Termination "campochess won on time"]

1. c4 {[%clk 0:02:59.5]} 1... g6 {[%clk 0:02:46.3]} 2. d4 {[%clk 0:02:59.3]}
2... c6 {[%clk 0:02:42.5]} 3. Nc3 {[%clk 0:02:58.1]} 3... d5 {[%clk 0:02:40]} 4.
e3 {[%clk 0:02:55.8]} 4... Nf6 {[%clk 0:02:36]} 5. Nf3 {[%clk 0:02:53.7]} 5...
Bg7 {[%clk 0:02:32.9]} 6. Ne5 {[%clk 0:02:53.1]} 6... O-O {[%clk 0:02:31.6]} 7.
Be2 {[%clk 0:02:52.2]} 7... dxc4 {[%clk 0:02:25.7]} 8. Nxc4 {[%clk 0:02:48.8]}
8... Nbd7 {[%clk 0:02:24.6]} 9. O-O {[%clk 0:02:48.1]} 9... Re8 {[%clk
0:02:21.6]} 10. b3 {[%clk 0:02:47.8]} 10... Qc7 {[%clk 0:02:21.3]} 11. Bb2
{[%clk 0:02:46.7]} 11... e5 {[%clk 0:02:18.2]} 12. dxe5 {[%clk 0:02:45.8]} 12...
Nxe5 {[%clk 0:02:18.2]} 13. Nxe5 {[%clk 0:02:45.8]} 13... Qxe5 {[%clk
0:02:18.1]} 14. Na4 {[%clk 0:02:44.2]} 14... Qc7 {[%clk 0:02:11.3]} 15. Rc1
{[%clk 0:02:42.6]} 15... Bf5 {[%clk 0:02:04.1]} 16. Qe1 {[%clk 0:02:34.6]} 16...
Ng4 {[%clk 0:01:52.2]} 17. Bxg4 {[%clk 0:02:31.2]} 17... Bxg4 {[%clk 0:01:43.9]}
18. Bxg7 {[%clk 0:02:28.8]} 18... Kxg7 {[%clk 0:01:44.8]} 19. Qb4 {[%clk
0:02:27.7]} 19... Bf5 {[%clk 0:01:39.8]} 20. Nc5 {[%clk 0:02:25.7]} 20... b6
{[%clk 0:01:37.6]} 21. Na4 {[%clk 0:02:18.5]} 21... Re4 {[%clk 0:01:27.4]} 22.
Qc3+ {[%clk 0:02:17.1]} 22... Qe5 {[%clk 0:01:22.8]} 23. Qxe5+ {[%clk
0:02:14.8]} 23... Rxe5 {[%clk 0:01:22.1]} 24. Rxc6 {[%clk 0:02:14.6]} 24... Be4
{[%clk 0:01:11.3]} 25. Rc7 {[%clk 0:02:11.5]} 25... Rg5 {[%clk 0:01:05.5]} 26.
f3 {[%clk 0:02:09.4]} 26... Bd5 {[%clk 0:01:02.6]} 27. e4 {[%clk 0:02:07.8]}
27... Be6 {[%clk 0:01:00.1]} 28. Rd1 {[%clk 0:02:07.1]} 28... h5 {[%clk
0:00:52.7]} 29. h4 {[%clk 0:02:04.9]} 29... Rb5 {[%clk 0:00:48.5]} 30. Nc3
{[%clk 0:02:02.4]} 30... Ra5 {[%clk 0:00:43.4]} 31. Rd6 {[%clk 0:01:59.5]} 31...
Kf8 {[%clk 0:00:39.8]} 32. b4 {[%clk 0:01:40]} 32... Ra3 {[%clk 0:00:37.4]} 33.
Kf2 {[%clk 0:01:29.6]} 33... a5 {[%clk 0:00:17]} 34. b5 {[%clk 0:01:26.6]} 34...
Bxa2 {[%clk 0:00:14.3]} 35. Nxa2 {[%clk 0:01:22.2]} 35... Rxa2+ {[%clk
0:00:14.9]} 36. Kg3 {[%clk 0:01:22.3]} 36... Kg8 {[%clk 0:00:13.4]} 37. Rdd7
{[%clk 0:01:21.8]} 37... Rf8 {[%clk 0:00:10.4]} 38. Rb7 {[%clk 0:01:21.7]} 38...
Rb2 {[%clk 0:00:08.2]} 39. Rxb6 {[%clk 0:01:21.5]} 39... a4 {[%clk 0:00:08.7]}
40. Ra7 {[%clk 0:01:21.5]} 40... Rb4 {[%clk 0:00:08.4]} 41. Rbb7 {[%clk
0:01:16.6]} 41... Kg7 {[%clk 0:00:06.7]} 42. Kf4 {[%clk 0:01:16.3]} 42... Kf6
{[%clk 0:00:06.7]} 43. g4 {[%clk 0:01:15.1]} 43... hxg4 {[%clk 0:00:05.8]} 44.
fxg4 {[%clk 0:01:15]} 44... g5+ {[%clk 0:00:05.3]} 45. hxg5+ {[%clk 0:01:14.2]}
45... Kg6 {[%clk 0:00:05.7]} 46. Rb6+ {[%clk 0:01:13.3]} 46... Kg7 {[%clk
0:00:05.5]} 47. Kf5 {[%clk 0:01:11.9]} 47... Rc4 {[%clk 0:00:03.4]} 48. Rbb7
{[%clk 0:01:01.1]} 48... Rb4 {[%clk 0:00:01.5]} 49. e5 {[%clk 0:01:00.6]} 1-0

[Event "Late-Titled-Tuesday-Blitz-December-26-2023"]
[Site "Chess.com"]
[Date "2023.12.26"]
[Round "11"]
[White "SmirnovTimofey2000"]
[Black "C_K_G"]
[Result "0-1"]
[WhiteElo "1981"]
[BlackElo "2073"]
[TimeControl "180+1"]
[EndTime "16:03:04 PST"]
[Termination "C_K_G won by resignation"]

1. d4 {[%clk 0:02:57.7]} 1... d5 {[%clk 0:02:54.7]} 2. Bf4 {[%clk 0:02:55.7]}
2... e6 {[%clk 0:02:54.8]} 3. e3 {[%clk 0:02:53.5]} 3... Nf6 {[%clk 0:02:55.3]}
4. Nd2 {[%clk 0:02:53.4]} 4... Bd6 {[%clk 0:02:56]} 5. Bg3 {[%clk 0:02:53]} 5...
O-O {[%clk 0:02:52.9]} 6. Ngf3 {[%clk 0:02:52.6]} 6... c5 {[%clk 0:02:52.6]} 7.
c3 {[%clk 0:02:52.7]} 7... Nc6 {[%clk 0:02:52.3]} 8. Bd3 {[%clk 0:02:52.1]} 8...
Re8 {[%clk 0:02:52.1]} 9. Ne5 {[%clk 0:02:50.6]} 9... Bxe5 {[%clk 0:02:34.3]}
10. dxe5 {[%clk 0:02:47.6]} 10... Nd7 {[%clk 0:02:29.7]} 11. f4 {[%clk
0:02:46.2]} 11... g6 {[%clk 0:02:24.4]} 12. O-O {[%clk 0:02:42]} 12... f6 {[%clk
0:02:22.5]} 13. exf6 {[%clk 0:02:39.5]} 13... Nxf6 {[%clk 0:02:23.4]} 14. Nf3
{[%clk 0:02:36.3]} 14... Ng4 {[%clk 0:02:20.4]} 15. Qe2 {[%clk 0:02:15.7]} 15...
c4 {[%clk 0:02:15.7]} 16. Bc2 {[%clk 0:02:15.3]} 16... Qb6 {[%clk 0:02:12.1]}
17. Nd4 {[%clk 0:02:05.9]} 17... Nxd4 {[%clk 0:01:44.7]} 18. exd4 {[%clk
0:02:04.6]} 18... Qxb2 {[%clk 0:01:38.6]} 19. Rab1 {[%clk 0:01:47.2]} 19... Qxc3
{[%clk 0:01:35.6]} 20. Bxg6 {[%clk 0:01:38.6]} 20... Qxd4+ {[%clk 0:01:27.7]}
21. Kh1 {[%clk 0:01:31.8]} 21... hxg6 {[%clk 0:01:14]} 22. Qxg4 {[%clk
0:01:28.9]} 22... Kg7 {[%clk 0:01:10.8]} 23. Bf2 {[%clk 0:01:07.5]} 23... Qf6
{[%clk 0:01:02]} 24. Rbd1 {[%clk 0:01:04.2]} 24... e5 {[%clk 0:00:45.1]} 25. Qf3
{[%clk 0:00:53.4]} 25... Qxf4 {[%clk 0:00:40.7]} 26. Qxd5 {[%clk 0:00:50.5]}
26... Rf8 {[%clk 0:00:23]} 27. Bg1 {[%clk 0:00:22.5]} 27... Qxf1 {[%clk
0:00:19.4]} 28. Rxf1 {[%clk 0:00:22.9]} 28... Rxf1 {[%clk 0:00:19.8]} 29. Qxe5+
{[%clk 0:00:23.4]} 29... Kh7 {[%clk 0:00:18.1]} 30. Qe7+ {[%clk 0:00:19.3]}
30... Kg8 {[%clk 0:00:18.1]} 31. Qe6+ {[%clk 0:00:15.5]} 31... Bxe6 {[%clk
0:00:16.5]} 0-1

[Event "Late-Titled-Tuesday-Blitz-December-26-2023"]
[Site "Chess.com"]
[Date "2023.12.26"]
[Round "11"]
[White "Szparu"]
[Black "DanielNaroditsky"]
[Result "0-1"]
[WhiteElo "2903"]
[BlackElo "3103"]
[TimeControl "180+1"]
[EndTime "16:03:06 PST"]
[Termination "DanielNaroditsky won on time"]

1. e4 {[%clk 0:02:39.9]} 1... c5 {[%clk 0:02:59.7]} 2. c3 {[%clk 0:02:39.4]}
2... d6 {[%clk 0:02:54.5]} 3. d4 {[%clk 0:02:39.4]} 3... Nf6 {[%clk 0:02:55.1]}
4. Bd3 {[%clk 0:02:39.1]} 4... Nc6 {[%clk 0:02:53.8]} 5. Nf3 {[%clk 0:02:39]}
5... Bg4 {[%clk 0:02:52]} 6. d5 {[%clk 0:02:36.9]} 6... Bxf3 {[%clk 0:02:52.1]}
7. Qxf3 {[%clk 0:02:25.1]} 7... Ne5 {[%clk 0:02:52.5]} 8. Bb5+ {[%clk
0:02:22.5]} 8... Ned7 {[%clk 0:02:52.9]} 9. c4 {[%clk 0:02:14.8]} 9... a6 {[%clk
0:02:51]} 10. Ba4 {[%clk 0:02:14.8]} 10... g6 {[%clk 0:02:28.9]} 11. Nc3 {[%clk
0:02:14.6]} 11... Bg7 {[%clk 0:02:28.9]} 12. O-O {[%clk 0:02:14.6]} 12... O-O
{[%clk 0:02:29.1]} 13. Qe2 {[%clk 0:02:12.2]} 13... b5 {[%clk 0:02:20.9]} 14.
cxb5 {[%clk 0:02:12.1]} 14... Nb6 {[%clk 0:02:21.3]} 15. bxa6 {[%clk 0:02:10.4]}
15... Nxa4 {[%clk 0:02:20.4]} 16. Nxa4 {[%clk 0:02:10.6]} 16... Qa5 {[%clk
0:02:19.6]} 17. Nc3 {[%clk 0:02:07.9]} 17... Nd7 {[%clk 0:02:18.4]} 18. Bg5
{[%clk 0:02:02.7]} 18... Rfe8 {[%clk 0:02:11.2]} 19. a4 {[%clk 0:02:01]} 19...
h6 {[%clk 0:02:06.3]} 20. Bd2 {[%clk 0:02:00.1]} 20... Qxa6 {[%clk 0:02:04.4]}
21. Qxa6 {[%clk 0:01:34.1]} 21... Rxa6 {[%clk 0:02:05.3]} 22. Nb5 {[%clk
0:01:34.6]} 22... Rb8 {[%clk 0:02:00.6]} 23. Bc3 {[%clk 0:01:12.7]} 23... Bxc3
{[%clk 0:01:54]} 24. Nxc3 {[%clk 0:01:01.5]} 24... Rb4 {[%clk 0:01:20.5]} 25. f3
{[%clk 0:01:01.3]} 25... c4 {[%clk 0:01:14.1]} 26. Ra2 {[%clk 0:00:55.1]} 26...
Nc5 {[%clk 0:01:12]} 27. Rfa1 {[%clk 0:00:51.8]} 27... Nb3 {[%clk 0:01:09.2]}
28. Rd1 {[%clk 0:00:49.4]} 28... Ra5 {[%clk 0:01:08]} 29. Kf1 {[%clk 0:00:45.5]}
29... Nc5 {[%clk 0:01:08.3]} 30. Rda1 {[%clk 0:00:41]} 30... Nb3 {[%clk
0:01:04.1]} 31. Rd1 {[%clk 0:00:40.9]} 31... Kg7 {[%clk 0:00:49.4]} 32. Ke2
{[%clk 0:00:38.6]} 32... f5 {[%clk 0:00:42.6]} 33. exf5 {[%clk 0:00:37.2]} 33...
gxf5 {[%clk 0:00:43.5]} 34. f4 {[%clk 0:00:37.4]} 34... Nc5 {[%clk 0:00:41.9]}
35. Kf3 {[%clk 0:00:28.2]} 35... Rb3 {[%clk 0:00:35.5]} 36. Rd4 {[%clk
0:00:24.7]} 36... Nxa4 {[%clk 0:00:28.5]} 37. Rxc4 {[%clk 0:00:05.1]} 37... Nxb2
{[%clk 0:00:22.8]} 0-1

[Event "Late-Titled-Tuesday-Blitz-December-26-2023"]
[Site "Chess.com"]
[Date "2023.12.26"]
[Round "11"]
[White "FontVella8"]
[Black "h4parah5"]
[Result "0-1"]
[WhiteElo "2794"]
[BlackElo "2939"]
[TimeControl "180+1"]
[EndTime "16:03:09 PST"]
[Termination "h4parah5 won on time"]

1. c4 {[%clk 0:02:59.7]} 1... e6 {[%clk 0:02:58.7]} 2. g3 {[%clk 0:03:00.1]}
2... d5 {[%clk 0:02:59.6]} 3. Bg2 {[%clk 0:03:00.6]} 3... d4 {[%clk 0:02:59.4]}
4. Nf3 {[%clk 0:03:00.9]} 4... Nf6 {[%clk 0:02:59.9]} 5. O-O {[%clk 0:03:01.5]}
5... c5 {[%clk 0:02:59.6]} 6. e3 {[%clk 0:03:00.6]} 6... Nc6 {[%clk 0:03:00]} 7.
exd4 {[%clk 0:03:00.7]} 7... cxd4 {[%clk 0:03:00.9]} 8. d3 {[%clk 0:03:01.4]}
8... Bd6 {[%clk 0:03:00.7]} 9. Na3 {[%clk 0:03:01.5]} 9... O-O {[%clk
0:02:59.2]} 10. Nc2 {[%clk 0:03:02.1]} 10... e5 {[%clk 0:02:58.6]} 11. b4 {[%clk
0:02:59]} 11... h6 {[%clk 0:02:57.6]} 12. c5 {[%clk 0:02:53.4]} 12... Bc7 {[%clk
0:02:55.9]} 13. Re1 {[%clk 0:02:40.5]} 13... a6 {[%clk 0:02:54.5]} 14. a4 {[%clk
0:02:35.2]} 14... Re8 {[%clk 0:02:13]} 15. b5 {[%clk 0:02:12.1]} 15... axb5
{[%clk 0:02:13.9]} 16. axb5 {[%clk 0:02:13]} 16... Rxa1 {[%clk 0:02:12.6]} 17.
Nxa1 {[%clk 0:02:13]} 17... Nb4 {[%clk 0:02:12.9]} 18. Qb3 {[%clk 0:01:34.1]}
18... Nbd5 {[%clk 0:02:10.5]} 19. Bd2 {[%clk 0:01:13.8]} 19... Bf5 {[%clk
0:01:31.1]} 20. Nc2 {[%clk 0:01:10.5]} 20... Nc3 {[%clk 0:01:07.5]} 21. b6
{[%clk 0:00:55.2]} 21... Bb8 {[%clk 0:01:07.1]} 22. Bxc3 {[%clk 0:00:35]} 22...
dxc3 {[%clk 0:01:08]} 23. Nh4 {[%clk 0:00:24.8]} 23... Bxd3 {[%clk 0:01:01.8]}
24. Bxb7 {[%clk 0:00:24.3]} 24... e4 {[%clk 0:00:48.6]} 25. Ng2 {[%clk
0:00:17.8]} 25... Ng4 {[%clk 0:00:38.4]} 26. Bd5 {[%clk 0:00:09.7]} 26... Ne5
{[%clk 0:00:37.2]} 27. Nce3 {[%clk 0:00:08.7]} 27... Nf3+ {[%clk 0:00:35.2]} 28.
Kh1 {[%clk 0:00:09.1]} 28... Nxe1 {[%clk 0:00:32.4]} 29. Nxe1 {[%clk 0:00:09.7]}
29... Qe7 {[%clk 0:00:28.4]} 30. c6 {[%clk 0:00:09.1]} 30... Be5 {[%clk
0:00:28]} 31. c7 {[%clk 0:00:09]} 31... Bxc7 {[%clk 0:00:27.2]} 32. bxc7 {[%clk
0:00:09.3]} 32... Qxc7 {[%clk 0:00:27.9]} 33. Bc4 {[%clk 0:00:04.9]} 33... Bxc4
{[%clk 0:00:23.4]} 34. Nxc4 {[%clk 0:00:04]} 34... Rb8 {[%clk 0:00:22.8]} 35.
Qa2 {[%clk 0:00:01.9]} 35... Qd7 {[%clk 0:00:19.8]} 36. Ne3 {[%clk 0:00:01.7]}
36... Qd2 {[%clk 0:00:19.2]} 0-1

[Event "Late-Titled-Tuesday-Blitz-December-26-2023"]
[Site "Chess.com"]
[Date "2023.12.26"]
[Round "11"]
[White "Tunahan_Makaraci"]
[Black "KNVB"]
[Result "0-1"]
[WhiteElo "2501"]
[BlackElo "2679"]
[TimeControl "180+1"]
[EndTime "16:03:18 PST"]
[Termination "KNVB won by resignation"]

1. e4 {[%clk 0:03:00.9]} 1... b6 {[%clk 0:02:58.8]} 2. g3 {[%clk 0:02:57.7]}
2... Bb7 {[%clk 0:02:58.1]} 3. Bg2 {[%clk 0:02:57.6]} 3... e6 {[%clk 0:02:58.5]}
4. d4 {[%clk 0:02:57.2]} 4... Nf6 {[%clk 0:02:58.2]} 5. Nd2 {[%clk 0:02:57]}
5... c5 {[%clk 0:02:57]} 6. c3 {[%clk 0:02:56.5]} 6... cxd4 {[%clk 0:02:57.4]}
7. cxd4 {[%clk 0:02:57.4]} 7... Nc6 {[%clk 0:02:58.1]} 8. Ne2 {[%clk 0:02:56.8]}
8... h5 {[%clk 0:02:47.8]} 9. h3 {[%clk 0:02:53.6]} 9... Rc8 {[%clk 0:02:15.2]}
10. O-O {[%clk 0:02:43.8]} 10... g5 {[%clk 0:02:10]} 11. Nb3 {[%clk 0:02:25.9]}
11... g4 {[%clk 0:01:43.8]} 12. h4 {[%clk 0:02:21.5]} 12... Ne7 {[%clk
0:01:25.3]} 13. Nc3 {[%clk 0:02:11.5]} 13... Rxc3 {[%clk 0:01:21.1]} 14. bxc3
{[%clk 0:02:10.4]} 14... Nxe4 {[%clk 0:01:20.7]} 15. Qc2 {[%clk 0:01:49.4]}
15... Qa8 {[%clk 0:01:17.2]} 16. Nd2 {[%clk 0:01:44.7]} 16... Nxg3 {[%clk
0:01:00.8]} 17. Bxb7 {[%clk 0:01:24.7]} 17... Ne2+ {[%clk 0:01:00.4]} 18. Kh2
{[%clk 0:01:21.6]} 18... Qb8+ {[%clk 0:00:59.8]} 19. Kg2 {[%clk 0:01:02.9]}
19... Qxb7+ {[%clk 0:00:57.5]} 20. Qe4 {[%clk 0:00:59.6]} 20... Nf4+ {[%clk
0:00:51.3]} 21. Kg3 {[%clk 0:00:56]} 21... Qb8 {[%clk 0:00:42.6]} 22. Qe5 {[%clk
0:00:52.9]} 22... Qa8 {[%clk 0:00:08.4]} 23. Qxf4 {[%clk 0:00:45]} 23... Nf5+
{[%clk 0:00:08.3]} 24. Kh2 {[%clk 0:00:44.2]} 24... Bd6 {[%clk 0:00:08.8]} 25.
Qxd6 {[%clk 0:00:27]} 25... Nxd6 {[%clk 0:00:09.7]} 26. Ba3 {[%clk 0:00:26.1]}
26... Ne4 {[%clk 0:00:05]} 27. Nxe4 {[%clk 0:00:15.2]} 27... Qxe4 {[%clk
0:00:05.9]} 28. Bd6 {[%clk 0:00:15.6]} 28... Qf3 {[%clk 0:00:03.5]} 29. Bg3
{[%clk 0:00:12.8]} 29... f5 {[%clk 0:00:01.8]} 30. Rac1 {[%clk 0:00:13.7]} 30...
f4 {[%clk 0:00:02.3]} 31. Rce1 {[%clk 0:00:06.2]} 31... Rf8 {[%clk 0:00:02.2]}
32. Kg1 {[%clk 0:00:04.3]} 32... fxg3 {[%clk 0:00:02.7]} 33. fxg3 {[%clk
0:00:05.2]} 33... Qxg3+ {[%clk 0:00:03.5]} 34. Kh1 {[%clk 0:00:05.7]} 34... Qh3+
{[%clk 0:00:03.6]} 35. Kg1 {[%clk 0:00:06.6]} 35... Rxf1+ {[%clk 0:00:03.5]} 36.
Rxf1 {[%clk 0:00:07.5]} 36... g3 {[%clk 0:00:04]} 37. Rf8+ {[%clk 0:00:06.5]}
37... Kxf8 {[%clk 0:00:04]} 0-1

[Event "Late-Titled-Tuesday-Blitz-December-26-2023"]
[Site "Chess.com"]
[Date "2023.12.26"]
[Round "11"]
[White "bazar-wokzal"]
[Black "prime-morty"]
[Result "1-0"]
[WhiteElo "2672"]
[BlackElo "2577"]
[TimeControl "180+1"]
[EndTime "16:03:19 PST"]
[Termination "bazar-wokzal won by resignation"]

1. e4 {[%clk 0:03:00.9]} 1... d6 {[%clk 0:03:00.1]} 2. f4 {[%clk 0:03:00.5]}
2... Nf6 {[%clk 0:03:01]} 3. Nc3 {[%clk 0:03:00.4]} 3... e5 {[%clk 0:03:01.9]}
4. Nf3 {[%clk 0:03:00.1]} 4... Be7 {[%clk 0:03:02.5]} 5. Bc4 {[%clk 0:02:52]}
5... O-O {[%clk 0:03:02.6]} 6. d3 {[%clk 0:02:49.2]} 6... c6 {[%clk 0:03:02.8]}
7. fxe5 {[%clk 0:02:43.6]} 7... dxe5 {[%clk 0:03:02.8]} 8. Nxe5 {[%clk
0:02:43.5]} 8... b5 {[%clk 0:02:51.2]} 9. Bb3 {[%clk 0:02:42.3]} 9... Bc5 {[%clk
0:02:47]} 10. Rf1 {[%clk 0:02:17.6]} 10... Bd6 {[%clk 0:02:23.7]} 11. Nxf7
{[%clk 0:01:55.5]} 11... Rxf7 {[%clk 0:02:22.8]} 12. Bxf7+ {[%clk 0:01:54.2]}
12... Kxf7 {[%clk 0:02:22.8]} 13. Bg5 {[%clk 0:01:54.3]} 13... Be5 {[%clk
0:02:16.4]} 14. Bxf6 {[%clk 0:01:49.1]} 14... gxf6 {[%clk 0:02:12.9]} 15. Qh5+
{[%clk 0:01:44]} 15... Kg7 {[%clk 0:02:12.7]} 16. O-O-O {[%clk 0:01:41.6]} 16...
b4 {[%clk 0:01:48]} 17. d4 {[%clk 0:01:30.6]} 17... Bxd4 {[%clk 0:01:31.3]} 18.
Ne2 {[%clk 0:01:23.6]} 18... Be3+ {[%clk 0:01:31.3]} 19. Kb1 {[%clk 0:01:24]}
19... Qe7 {[%clk 0:01:31.5]} 20. Rf3 {[%clk 0:01:17.2]} 20... Bg5 {[%clk
0:01:25]} 21. h4 {[%clk 0:01:16.3]} 21... Be6 {[%clk 0:01:04.5]} 22. hxg5 {[%clk
0:01:13]} 22... fxg5 {[%clk 0:01:04.7]} 23. Nd4 {[%clk 0:00:57.7]} 23... Nd7
{[%clk 0:00:36.8]} 24. Qxg5+ {[%clk 0:00:47.4]} 24... Qxg5 {[%clk 0:00:34.1]}
25. Nxe6+ {[%clk 0:00:47.3]} 25... Kg6 {[%clk 0:00:32.1]} 26. Nxg5 {[%clk
0:00:47.1]} 26... Ne5 {[%clk 0:00:32]} 27. Rf5 {[%clk 0:00:43.8]} 27... Nc4
{[%clk 0:00:31.8]} 28. b3 {[%clk 0:00:33.6]} 28... Na3+ {[%clk 0:00:26.6]} 29.
Kb2 {[%clk 0:00:33.5]} 29... Nb5 {[%clk 0:00:27.5]} 30. Nf7 {[%clk 0:00:29.5]}
30... Re8 {[%clk 0:00:19.8]} 31. Nd6 {[%clk 0:00:26]} 31... Rd8 {[%clk
0:00:20.1]} 32. Nxb5 {[%clk 0:00:21.5]} 32... Rxd1 {[%clk 0:00:20]} 33. Nxa7
{[%clk 0:00:21.8]} 33... Rd6 {[%clk 0:00:19.5]} 34. Rc5 {[%clk 0:00:20.8]} 34...
h5 {[%clk 0:00:15.7]} 35. Rxc6 {[%clk 0:00:21]} 35... Rxc6 {[%clk 0:00:16]} 36.
Nxc6 {[%clk 0:00:21.9]} 36... Kg5 {[%clk 0:00:16.4]} 37. Nxb4 {[%clk 0:00:21.1]}
37... Kg4 {[%clk 0:00:16.7]} 38. e5 {[%clk 0:00:20.1]} 38... Kf5 {[%clk
0:00:16.6]} 39. Nd3 {[%clk 0:00:20]} 39... h4 {[%clk 0:00:17.2]} 40. a4 {[%clk
0:00:19.8]} 1-0